bitfinex-derivatives/quotes_SOLF0:USTF0_20260217
["timestamp","ask_amount","ask_price","bid_price","bid_amount"]
[1771316956400,3.67643935,86.309,86.262,3.7820243]
[1771316956608,3.60153895,86.299,86.255,2.01664894]
[1771316956809,3.60153895,86.299,86.253,3.7820243]
[1771316957302,3.60153895,86.299,86.255,3.7820243]
[1771316958709,3.60153895,86.299,86.245,2.01698206]
[1771316958710,3.60153895,86.299,86.257,3.7820243]
[1771316960709,3.60153895,86.299,86.26,3.7820243]
[1771316960909,2.73292162,86.3,86.26,3.7820243]
[1771316961111,3.60153895,86.309,86.26,3.7820243]
[1771316961806,3.60153895,86.309,86.263,3.7820243]
[1771316962302,6.33446057,86.3,86.263,3.7820243]
[1771316962502,3.60153895,86.299,86.263,3.7820243]
[1771316965103,3.60153895,86.299,86.264,10.4387]
[1771316965308,3.60153895,86.299,86.265,3.7820243]
[1771316966721,3.60153895,86.299,86.266,10.4385]
[1771316967724,3.60153895,86.299,86.265,3.7820243]
[1771316976929,3.60153895,86.299,86.267,3.80604596]
[1771316980831,2.73292162,86.32,86.274,3.80604596]
[1771316981333,3.88007599,86.322,86.277,3.80604596]
[1771316981930,3.88007599,86.322,86.257,85.06]
[1771316981931,3.88007599,86.322,86.283,3.80604596]
[1771316982429,3.88007599,86.333,86.283,3.80604596]
[1771316982831,3.88007599,86.333,86.288,3.80604596]
[1771316984435,2.73431922,86.33,86.288,3.80604596]
[1771316988441,2.73431922,86.34,86.294,3.71084967]
[1771316988641,3.6782645,86.339,86.294,3.71084967]
[1771316988829,3.6782645,86.329,86.294,3.71084967]
[1771316992533,3.74085711,86.319,86.284,3.87497624]
[1771316993543,3.74085711,86.319,86.263,84.42]
[1771316993544,3.74085711,86.319,86.264,3.87497624]
[1771316993838,10.79953892,86.356,86.264,3.87497624]
[1771316993839,3.74085711,86.309,86.264,3.87497624]
[1771316994637,3.74085711,86.309,86.272,10.4377]
[1771316994845,3.74085711,86.309,86.273,3.87497624]
[1771316996645,3.74085711,86.309,86.276,10.4373]
[1771316996845,3.74085711,86.309,86.276,14.31227624]
[1771316997250,3.74085711,86.309,86.276,3.87497624]
[1771316998450,3.74085711,86.309,86.268,10.4383]
[1771316999743,10.79953892,86.343,86.266,3.87497624]
[1771316999744,3.74085711,86.299,86.266,3.87497624]
[1771316999945,10.433,86.312,86.245,2.01698206]
[1771316999946,3.74085711,86.289,86.25,3.87497624]
[1771317000752,3.74085711,86.289,86.251,3.87497624]
[1771317001748,3.74085711,86.289,86.245,2.01698206]
[1771317001749,3.74085711,86.289,86.252,14.31517624]
[1771317002055,3.74085711,86.289,86.253,3.87497624]
[1771317003143,3.74085711,86.289,86.228,83.68]
[1771317003144,3.74085711,86.279,86.242,3.87497624]
[1771317003342,3.74085711,86.269,86.233,10.4424]
[1771317003751,3.74085711,86.269,86.234,3.87497624]
[1771317004350,3.74085711,86.279,86.234,3.87497624]
[1771317007153,3.74085711,86.279,86.238,3.87497624]
[1771317008345,6.47517633,86.29,86.248,3.87497624]
[1771317008545,3.74085711,86.29,86.248,3.87497624]
[1771317009654,3.74085711,86.289,86.257,10.4396]
[1771317011649,2.73431922,86.3,86.261,3.87497624]
[1771317012452,6.47517633,86.3,86.261,3.87497624]
[1771317012653,6.47517633,86.3,86.262,10.439]
[1771317012953,3.74085711,86.299,86.262,10.439]
[1771317013154,3.74085711,86.299,86.261,3.87497624]
[1771317014161,3.74085711,86.299,86.261,14.31407624]
[1771317016165,3.74085711,86.299,86.261,3.87497624]
[1771317017764,3.58671734,86.289,86.253,10.4401]
[1771317019463,2.73431922,86.28,86.25,3.81586126]
[1771317019664,3.58671734,86.279,86.245,10.4411]
[1771317020760,3.58671734,86.279,86.246,3.81586126]
[1771317020966,2.73431922,86.28,86.248,3.81586126]
[1771317021763,2.73431922,86.28,86.249,14.25646126]
[1771317021963,2.73431922,86.29,86.25,3.81586126]
[1771317022667,6.32103656,86.29,86.25,3.81586126]
[1771317025366,3.58671734,86.289,86.25,3.81586126]
[1771317026664,2.73431922,86.3,86.257,3.81586126]
[1771317026859,3.58671734,86.299,86.257,3.81586126]
[1771317027274,2.73431922,86.29,86.257,3.81586126]
[1771317027771,2.73431922,86.29,86.259,14.25516126]
[1771317027973,72.92,86.308,86.26,3.81586126]
[1771317029269,3.58671734,86.308,86.26,3.81586126]
[1771317029670,3.58671734,86.308,86.267,3.81586126]
[1771317030374,72.92,86.319,86.276,3.81586126]
[1771317030569,2.73431922,86.32,86.276,3.81586126]
[1771317030766,6.32103656,86.32,86.278,3.81586126]
[1771317030965,3.58671734,86.319,86.278,3.81586126]
[1771317031172,2.73431922,86.33,86.278,3.81586126]
[1771317031372,3.58671734,86.329,86.278,3.81586126]
[1771317031673,2.73431922,86.32,86.278,3.81586126]
[1771317032464,3.58671734,86.319,86.278,3.81586126]
[1771317032669,3.58671734,86.309,86.275,10.4374]
[1771317034268,3.58671734,86.309,86.276,3.81586126]
[1771317040672,2.73431922,86.31,86.276,3.81586126]
[1771317040979,2.73431922,86.32,86.276,3.81586126]
[1771317041275,3.58671734,86.32,86.285,3.81586126]
[1771317041482,72.92,86.326,86.285,3.81586126]
[1771317042679,72.92,86.326,86.287,3.81586126]
[1771317043468,2.734142,86.33,86.288,10.4358]
[1771317043676,6.32085934,86.34,86.289,3.81586126]
[1771317043874,3.58671734,86.338,86.289,3.81586126]
[1771317044074,13.78248303,86.337,86.289,3.81586126]
[1771317044378,10.19576569,86.336,86.289,3.81586126]
[1771317044573,3.58671734,86.337,86.289,3.81586126]
[1771317044772,10.19454839,86.336,86.297,3.6717207]
[1771317044971,3.58671734,86.337,86.297,3.6717207]
[1771317045174,10.20439176,86.336,86.297,3.6717207]
[1771317045479,3.58671734,86.337,86.297,3.6717207]
[1771317045680,10.20359207,86.336,86.297,3.6717207]
[1771317045878,3.58671734,86.337,86.297,3.6717207]
[1771317046078,10.20359207,86.336,86.297,3.6717207]
[1771317046285,3.58671734,86.337,86.297,3.6717207]
[1771317046577,2.734142,86.33,86.297,3.6717207]
[1771317048978,3.58671734,86.337,86.298,10.4346]
[1771317049178,3.58671734,86.337,86.298,14.1063207]
[1771317049380,2.734142,86.33,86.298,14.1063207]
[1771317050283,2.734142,86.33,86.304,10.4338]
[1771317050482,3.58671734,86.337,86.305,3.61875816]
[1771317052476,6.41124524,86.35,86.307,3.61875816]
[1771317053373,3.67710324,86.349,86.307,3.61875816]
[1771317053576,10.4272,86.36,86.307,3.61875816]
[1771317053577,2.734142,86.36,86.307,3.61875816]
[1771317053778,6.41124524,86.36,86.307,3.61875816]
[1771317053977,3.67710324,86.359,86.307,3.61875816]
[1771317054685,3.67710324,86.359,86.312,3.61875816]
[1771317055679,3.67710324,86.359,86.315,3.61875816]
[1771317056283,3.67710324,86.359,86.321,3.61875816]
[1771317056488,2.734142,86.35,86.321,3.61875816]
[1771317058188,3.67710324,86.359,86.322,10.4317]
[1771317058390,3.67710324,86.359,86.323,3.61875816]
[1771317058781,2.734142,86.36,86.323,3.61875816]
[1771317059791,2.734142,86.36,86.326,3.61875816]
[1771317060690,3.67710324,86.367,86.326,3.61875816]
[1771317061186,3.67710324,86.367,86.331,3.61875816]
[1771317061992,2.734142,86.37,86.331,3.61875816]
[1771317063691,2.734142,86.34,86.311,3.61875816]
[1771317067003,2.734142,86.34,86.261,21.52340994]
[1771317067004,3.67710324,86.319,86.281,3.61875816]
[1771317068698,3.67710324,86.319,86.283,10.4365]
[1771317069094,8.58210174,86.334,86.23,2.734142]
[1771317069396,3.67710324,86.309,86.251,3.61875816]
[1771317069594,14.2930061,86.362,86.251,3.61875816]
[1771317069595,2.734142,86.32,86.26,2.734142]
[1771317069794,2.734142,86.32,86.261,3.61875816]
[1771317070392,3.67710324,86.328,86.282,3.61875816]
[1771317071192,2.734142,86.34,86.284,3.61875816]
[1771317072006,2.734142,86.32,86.286,3.61875816]
[1771317073304,2.734142,86.32,86.255,21.55786879]
[1771317073305,72.94,86.368,86.291,3.61875816]
[1771317073504,2.734142,86.35,86.291,3.61875816]
[1771317073900,2.734142,86.36,86.308,3.61875816]
[1771317075803,2.734142,86.36,86.314,3.6732953]
[1771317076208,1.75402762,86.368,86.314,3.6732953]
[1771317076404,2.734142,86.36,86.314,3.6732953]
[1771317077811,2.734142,86.36,86.3,2.734142]
[1771317077812,2.734142,86.36,86.316,3.6732953]
[1771317078204,1.79074878,86.359,86.316,3.6732953]
[1771317078409,2.734142,86.35,86.316,3.6732953]
[1771317079108,2.734142,86.35,86.319,3.6732953]
[1771317079314,1.79074878,86.359,86.319,3.6732953]
[1771317082119,2.734142,86.37,86.323,3.6732953]
[1771317082519,2.734142,86.38,86.323,3.6732953]
[1771317082714,10.18655502,86.379,86.323,3.6732953]
[1771317082914,2.734142,86.38,86.323,3.6732953]
[1771317083114,10.18654722,86.379,86.323,3.6732953]
[1771317083311,2.734142,86.38,86.323,3.6732953]
[1771317083515,1.79690665,86.383,86.344,3.6732953]
[1771317084522,2.734142,86.4,86.352,3.6732953]
[1771317084709,10.18415344,86.399,86.352,3.6732953]
[1771317085021,2.734142,86.4,86.352,3.6732953]
[1771317085820,2.734142,86.4,86.34,2.734142]
[1771317085821,2.734142,86.4,86.354,3.6732953]
[1771317092431,2.734142,86.36,86.324,3.6732953]
[1771317093331,2.734142,86.36,86.325,10.4313]
[1771317093732,2.734142,86.36,86.325,14.1045953]
[1771317096227,2.734142,86.36,86.326,3.6732953]
[1771317096424,2.734142,86.38,86.329,3.6732953]
[1771317097732,2.734142,86.38,86.337,3.6732953]
[1771317099535,2.734142,86.38,86.34,3.6732953]
[1771317100138,2.734142,86.36,86.301,3.6732953]
[1771317100341,4.50933901,86.36,86.301,3.6732953]
[1771317100641,1.77519701,86.36,86.311,3.6732953]
[1771317101836,1.77519701,86.36,86.324,10.4314]
[1771317103337,2.734142,86.38,86.337,3.6732953]
[1771317103932,2.73057938,86.38,86.337,3.6732953]
[1771317104733,2.73057938,86.38,86.342,3.76712877]
[1771317105839,72.94,86.416,86.295,21.55786879]
[1771317105840,1.78859665,86.379,86.295,21.55786879]
[1771317106038,1.78859665,86.379,86.271,28.31771381]
[1771317106039,2.73057938,86.36,86.307,3.76712877]
[1771317106340,2.73057938,86.36,86.269,20.8762]
[1771317106341,1.79633781,86.391,86.341,3.76712877]
[1771317106542,10.15339934,86.399,86.347,3.76712877]
[1771317106735,2.73057938,86.4,86.347,3.76712877]
[1771317106931,10.15160086,86.399,86.347,3.76712877]
[1771317107129,2.73057938,86.4,86.347,3.76712877]
[1771317107434,1.79633781,86.404,86.359,14.19432877]
[1771317107642,1.79633781,86.404,86.36,3.76712877]
[1771317108142,2.73057938,86.4,86.36,3.76712877]
[1771317111441,2.73057938,86.39,86.349,10.4284]
[1771317111643,2.73057938,86.39,86.35,3.74803923]
[1771317112646,1.62676691,86.399,86.35,3.74803923]
[1771317114345,2.73057938,86.4,86.349,10.4284]
[1771317114346,1.63001475,86.389,86.349,10.4284]
[1771317118247,1.63001475,86.389,86.349,3.74803923]
[1771317119145,1.63001475,86.389,86.35,10.4283]
[1771317119548,1.63001475,86.389,86.349,3.74803923]
[1771317121956,1.64380135,86.379,86.338,14.17773923]
[1771317122453,1.64380135,86.379,86.339,3.74803923]
[1771317122844,1.64380135,86.379,86.343,3.74803923]
[1771317123045,4.38308931,86.39,86.343,3.74803923]
[1771317126358,1.70427928,86.389,86.343,3.74803923]
[1771317126748,1.70427928,86.389,86.346,3.74803923]
[1771317127661,2.73057938,86.4,86.318,72.94]
[1771317127662,2.73057938,86.4,86.354,3.74803923]
[1771317128659,2.73057938,86.4,86.356,3.74803923]
[1771317132263,10.25423397,86.399,86.358,3.74803923]
[1771317132466,10.25423397,86.398,86.358,3.74803923]
[1771317132659,2.73057938,86.4,86.358,3.74803923]
[1771317136063,1.70427928,86.402,86.364,3.65903372]
[1771317136266,10.25280446,86.401,86.364,3.65903372]
[1771317136469,10.25280446,86.4,86.364,3.65903372]
[1771317136766,1.70427928,86.402,86.364,3.65903372]
[1771317152980,1.70427928,86.402,86.326,72.94]
[1771317152981,2.23929834,86.426,86.372,3.65903372]
[1771317153170,10.2605198,86.425,86.372,3.65903372]
[1771317153369,10.2605198,86.424,86.372,3.65903372]
[1771317153573,2.23929834,86.426,86.372,3.65903372]
[1771317153780,10.25670332,86.425,86.372,3.65903372]
[1771317153982,10.25670332,86.424,86.372,3.65903372]
[1771317154180,2.23929834,86.426,86.372,3.65903372]
[1771317154881,2.23929834,86.426,86.381,3.65903372]
[1771317155681,2.23929834,86.426,86.381,14.08363372]
[1771317155879,2.2266572,86.442,86.382,3.65903372]
[1771317156082,2.2266572,86.44,86.391,3.65903372]
[1771317157694,2.2266572,86.44,86.393,3.65903372]
[1771317159192,2.20581366,86.451,86.402,3.65903372]
[1771317159880,2.20581366,86.439,86.391,10.4234]
[1771317160084,2.20581366,86.439,86.392,3.65903372]
[1771317168998,2.20581366,86.439,86.396,3.70796106]
[1771317175708,2.17987741,86.409,86.369,3.61477424]
[1771317176712,2.17987741,86.409,86.37,3.61477424]
[1771317179704,2.17987741,86.409,86.341,73.56]
[1771317179705,2.13787603,86.379,86.316,3.61477424]
[1771317179908,2.72722285,86.35,86.316,3.61477424]
[1771317181416,2.07521034,86.339,86.304,3.61477424]
[1771317181614,2.72722285,86.33,86.284,3.61477424]
[1771317182812,2.72722285,86.33,86.289,3.61477424]
[1771317183819,2.72722285,86.32,86.289,3.61477424]
[1771317184018,2.72722285,86.32,86.274,3.61477424]
[1771317184214,2.42740002,86.319,86.274,3.61477424]
[1771317184513,2.72722285,86.31,86.274,3.61477424]
[1771317186326,2.48934759,86.319,86.271,3.61477424]
[1771317186521,162.166,86.379,86.259,3.61477424]
[1771317186522,2.48934759,86.299,86.259,3.61477424]
[1771317186823,2.72722285,86.33,86.27,2.72722285]
[1771317187123,2.48934759,86.329,86.271,3.61477424]
[1771317187721,2.48934759,86.329,86.253,72.92]
[1771317187722,2.48934759,86.329,86.28,2.72722285]
[1771317187923,2.48934759,86.329,86.281,3.61477424]
[1771317190520,2.71116974,86.375,86.321,3.61477424]
[1771317191026,2.71116974,86.375,86.331,3.61477424]
[1771317192328,2.68536761,86.406,86.351,3.61477424]
[1771317192719,2.72722285,86.4,86.342,3.61477424]
[1771317192923,2.72722285,86.38,86.342,3.61477424]
[1771317193127,2.68536761,86.389,86.342,3.61477424]
[1771317193525,2.72722285,86.38,86.342,3.61477424]
[1771317194430,2.68536761,86.389,86.342,3.61477424]
[1771317194822,2.84485645,86.387,86.342,3.61477424]
[1771317195024,34.78,86.442,86.33,2.72722285]
[1771317195025,2.84485645,86.4,86.351,3.82724997]
[1771317195526,2.84682096,86.389,86.333,3.82724997]
[1771317195735,34.78,86.454,86.29,34.78]
[1771317195736,2.84682096,86.379,86.321,3.82724997]
[1771317197118,2.82662587,86.396,86.331,3.82724997]
[1771317197317,2.82662587,86.379,86.331,3.82724997]
[1771317197524,2.82662587,86.369,86.32,10.4319]
[1771317197926,2.82662587,86.369,86.32,14.25914997]
[1771317198225,2.82662587,86.369,86.32,3.82724997]
[1771317199931,2.82662587,86.369,86.321,3.82724997]
[1771317200832,2.82662587,86.369,86.324,3.82724997]
[1771317204628,2.88189751,86.385,86.327,3.82724997]
[1771317204834,2.88189751,86.385,86.33,2.72722285]
[1771317205033,2.88189751,86.385,86.331,3.82724997]
[1771317205434,2.88189751,86.385,86.333,3.82724997]
[1771317205640,2.72722285,86.38,86.333,3.82724997]
[1771317205838,2.87681686,86.379,86.333,3.82724997]
[1771317206436,2.87681686,86.379,86.334,10.4302]
[1771317210136,10.05701138,86.409,86.356,3.82724997]
[1771317210137,2.87118757,86.409,86.356,3.82724997]
[1771317210927,2.87118757,86.409,86.357,3.82724997]
[1771317211135,2.87118757,86.409,86.36,2.72722285]
[1771317211334,2.87118757,86.409,86.361,3.82724997]
[1771317211530,2.87118757,86.409,86.272,28.31771381]
[1771317211531,2.72722285,86.38,86.333,3.82724997]
[1771317212037,2.85572291,86.379,86.333,3.82724997]
[1771317212244,2.72722285,86.37,86.333,3.82724997]
[1771317212540,2.72722285,86.36,86.301,3.82724997]
[1771317213944,2.72722285,86.36,86.313,3.82724997]
[1771317215939,2.87570729,86.369,86.313,3.82724997]
[1771317216743,2.87570729,86.369,86.315,3.82724997]
[1771317217856,2.87570729,86.369,86.318,3.82724997]
[1771317218945,2.87570729,86.369,86.32,3.82724997]
[1771317219541,2.87570729,86.369,86.324,3.82724997]
[1771317220345,2.87570729,86.369,86.327,3.82724997]
[1771317222947,2.72722285,86.34,86.305,3.82724997]
[1771317223247,2.72722285,86.34,86.281,3.82724997]
[1771317223640,2.72722285,86.34,86.299,10.4345]
[1771317224040,2.72722285,86.33,86.293,3.82724997]
[1771317225848,2.82440651,86.339,86.293,3.82724997]
[1771317226847,2.82440651,86.339,86.296,3.77996276]
[1771317227042,2.82440651,86.339,86.288,3.77996276]
[1771317227043,2.73370344,86.33,86.288,3.77996276]
[1771317228247,10.4285,86.35,86.288,3.77996276]
[1771317228248,2.73370344,86.34,86.288,3.77996276]
[1771317228449,2.73370344,86.35,86.302,3.77996276]
[1771317228650,2.81380078,86.349,86.302,3.77996276]
[1771317228852,2.73370344,86.34,86.302,3.77996276]
[1771317229743,2.73370344,86.34,86.305,10.4337]
[1771317230152,2.81380078,86.349,86.305,10.4337]
[1771317230750,2.73370344,86.37,86.313,3.81098973]
[1771317231659,2.73370344,86.36,86.325,10.4313]
[1771317232854,2.81111938,86.33,86.266,3.81098973]
[1771317233056,2.81111938,86.33,86.208,35.64396088]
[1771317233057,2.73370344,86.29,86.25,3.81098973]
[1771317233261,2.73370344,86.28,86.25,3.81098973]
[1771317234363,2.81180244,86.269,86.219,3.81098973]
[1771317234561,2.73370344,86.28,86.221,3.81098973]
[1771317234761,2.73370344,86.28,86.226,3.81098973]
[1771317235762,2.73370344,86.28,86.23,14.25388973]
[1771317235962,2.81180244,86.284,86.23,14.25388973]
[1771317237059,2.81180244,86.284,86.231,3.81098973]
[1771317240469,10.4337,86.306,86.233,3.81098973]
[1771317240857,2.68727788,86.312,86.233,3.81098973]
[1771317241064,2.68727788,86.31,86.246,3.81098973]
[1771317242763,2.70767033,86.306,86.246,3.81098973]
[1771317243672,2.66804869,86.301,86.246,3.81098973]
[1771317244472,2.66804869,86.297,86.232,14.25348973]
[1771317245669,2.66355918,86.293,86.232,14.25348973]
[1771317246068,2.66355918,86.293,86.233,3.81098973]
[1771317246773,2.66355918,86.287,86.233,3.81098973]
[1771317248376,2.66355918,86.287,86.236,3.81098973]
[1771317248577,34.78,86.342,86.236,3.81098973]
[1771317248578,2.63299733,86.301,86.236,3.81098973]
[1771317249175,2.63299733,86.301,86.25,3.81098973]
[1771317250774,13.06739733,86.301,86.25,3.81098973]
[1771317252176,2.66174276,86.363,86.25,3.81098973]
[1771317252381,2.66174276,86.349,86.25,3.81098973]
[1771317253678,10.4316,86.324,86.266,3.81098973]
[1771317254282,2.65738979,86.333,86.268,3.71867478]
[1771317254870,11.58,86.42,86.225,2.01715743]
[1771317254871,2.66265177,86.309,86.226,3.71867478]
[1771317256779,13.086189,86.299,86.238,3.71867478]
[1771317257678,13.086189,86.299,86.241,3.71867478]
[1771317259172,2.651589,86.299,86.241,3.71867478]
[1771317259377,2.651589,86.299,86.251,3.71867478]
[1771317260685,2.651589,86.299,86.255,3.71867478]
[1771317262891,2.57311052,86.315,86.263,3.71867478]
[1771317263680,10.4322,86.319,86.267,3.71867478]
[1771317264189,2.5947844,86.318,86.267,3.71867478]
[1771317264787,2.5947844,86.318,86.269,10.4382]
[1771317265383,2.5947844,86.318,86.27,3.71867478]
[1771317265983,2.5947844,86.318,86.272,10.4378]
[1771317266188,2.5947844,86.318,86.272,14.15647478]
[1771317266486,2.5947844,86.318,86.273,3.71867478]
[1771317269190,2.5947844,86.318,86.28,3.71867478]
[1771317269592,10.431,86.329,86.28,3.71867478]
[1771317269890,2.48812133,86.351,86.289,3.71867478]
[1771317270491,2.48812133,86.366,86.289,3.71867478]
[1771317270693,2.48812133,86.364,86.289,3.71867478]
[1771317271692,10.4273,86.359,86.309,3.71867478]
[1771317273794,2.48812133,86.364,86.316,3.71867478]
[1771317274889,2.48812133,86.364,86.318,10.4322]
[1771317275084,2.48812133,86.364,86.319,3.71867478]
[1771317275489,178.0,86.411,86.319,3.71867478]
[1771317275490,12.82644176,86.381,86.319,3.71867478]
[1771317275890,6.84348185,86.4,86.332,3.71867478]
[1771317276090,2.40174176,86.394,86.332,3.71867478]
[1771317276291,2.40174176,86.389,86.332,3.71867478]
[1771317276498,2.40174176,86.387,86.332,3.71867478]
[1771317277297,2.40686451,86.379,86.315,3.71867478]
[1771317278692,2.40686451,86.376,86.317,3.71867478]
[1771317279398,2.40686451,86.376,86.3,72.94]
[1771317279399,2.40686451,86.376,86.32,3.71867478]
[1771317282405,2.40686451,86.376,86.323,3.71867478]
[1771317283797,2.40686451,86.376,86.327,3.71867478]
[1771317284002,2.38720369,86.394,86.327,3.71867478]
[1771317285801,2.38720369,86.394,86.348,3.7793309]
[1771317286200,2.38720369,86.394,86.322,3.7793309]
[1771317286997,2.38720369,86.394,86.352,14.2074309]
[1771317287202,2.39853381,86.409,86.353,3.7793309]
[1771317287398,2.39853381,86.399,86.295,3.7793309]
[1771317287604,2.39853381,86.38,86.322,3.7793309]
[1771317287803,2.39853381,86.379,86.322,3.7793309]
[1771317288613,2.39853381,86.37,86.322,3.7793309]
[1771317288812,2.39853381,86.37,86.311,10.433]
[1771317289706,2.16885307,86.368,86.311,10.433]
[1771317290315,2.17166455,86.359,86.261,3.90788336]
[1771317290510,2.17166455,86.359,86.263,3.90788336]
[1771317290910,2.17166455,86.339,86.284,3.90788336]
[1771317291413,2.13717626,86.336,86.284,3.90788336]
[1771317291916,2.13717626,86.336,86.275,10.4374]
[1771317292617,2.13717626,86.334,86.275,10.4374]
[1771317292813,2.13717626,86.334,86.275,14.34528336]
[1771317293215,2.13717626,86.334,86.276,3.90788336]
[1771317293616,10.69335798,86.381,86.245,3.90788336]
[1771317293617,2.15153419,86.313,86.245,3.90788336]
[1771317294317,2.15153419,86.308,86.245,3.90788336]
[1771317296408,2.15153419,86.308,86.247,3.90788336]
[1771317297708,2.15153419,86.308,86.25,3.90788336]
[1771317298915,2.15153419,86.308,86.252,3.90788336]
[1771317299316,6.83078052,86.32,86.252,3.90788336]
[1771317299815,6.83078052,86.32,86.257,3.90788336]
[1771317299816,2.18158222,86.319,86.257,3.90788336]
[1771317300723,2.18158222,86.319,86.26,3.90788336]
[1771317302621,2.18158222,86.319,86.248,3.90788336]
[1771317303124,2.18158222,86.319,86.225,2.01715743]
[1771317303125,2.0866415,86.299,86.226,3.90788336]
[1771317303423,2.0866415,86.317,86.226,3.90788336]
[1771317303619,6.83078052,86.32,86.226,3.90788336]
[1771317303828,2.0866415,86.331,86.265,3.90788336]
[1771317304724,2.0866415,86.331,86.273,3.90788336]
[1771317306118,2.0866415,86.331,86.276,3.90788336]
[1771317308821,12.51445649,86.33,86.277,14.34508336]
[1771317309922,2.73494242,86.32,86.277,14.34508336]
[1771317311029,2.73494242,86.32,86.277,3.90788336]
[1771317311427,2.73494242,86.31,86.277,3.90788336]
[1771317313426,2.73494242,86.32,86.277,3.90788336]
[1771317313824,2.73494242,86.32,86.28,3.90788336]
[1771317314027,2.73494242,86.33,86.28,3.90788336]
[1771317314632,2.73494242,86.32,86.28,3.90788336]
[1771317322324,2.73494242,86.33,86.284,3.84220866]
[1771317322833,2.73494242,86.34,86.284,3.84220866]
[1771317323329,10.4301,86.337,86.294,3.84220866]
[1771317324539,10.4301,86.337,86.296,3.84220866]
[1771317324839,12.37029274,86.337,86.296,3.84220866]
[1771317329834,2.73494242,86.33,86.296,3.84220866]
[1771317331432,12.37029274,86.337,86.298,3.84220866]
[1771317332044,10.4291,86.345,86.3,3.84220866]
[1771317332439,12.42871033,86.345,86.3,3.84220866]
[1771317333042,2.73494242,86.34,86.3,3.84220866]
[1771317335144,10.4298,86.338,86.3,3.84220866]
[1771317337333,2.73494242,86.36,86.302,3.84220866]
[1771317337534,28.79700757,86.42,86.3,2.73494242]
[1771317337535,2.00854517,86.396,86.341,3.84220866]
[1771317337746,10.15111318,86.395,86.341,3.84220866]
[1771317338046,2.00854517,86.409,86.351,3.84220866]
[1771317338351,20.8353,86.44,86.331,3.84220866]
[1771317338352,2.73494242,86.38,86.331,3.84220866]
[1771317339445,2.73494242,86.38,86.332,3.84220866]
[1771317340747,2.73494242,86.38,86.334,3.84220866]
[1771317341350,2.00854517,86.389,86.334,3.84220866]
[1771317341737,2.00854517,86.389,86.33,2.73494242]
[1771317341738,2.00854517,86.389,86.339,3.84220866]
[1771317341938,2.0629857,86.399,86.341,3.84220866]
[1771317342149,2.73494242,86.39,86.341,3.84220866]
[1771317343254,2.0629857,86.389,86.341,3.84220866]
[1771317344952,10.4238,86.389,86.341,3.84220866]
[1771317345157,2.08469851,86.388,86.341,3.84220866]
[1771317345356,2.08469851,86.388,86.342,10.4293]
[1771317346557,2.08469851,86.388,86.343,3.71842942]
[1771317350153,2.08469851,86.388,86.344,10.4291]
[1771317350654,2.08469851,86.388,86.344,14.31734008]
[1771317351054,8.57832169,86.416,86.299,20.869]
[1771317351055,2.05920137,86.379,86.331,3.88824008]
[1771317351255,20.8401,86.42,86.331,3.88824008]
[1771317351256,2.05920137,86.369,86.331,3.88824008]
[1771317351451,4.78970879,86.36,86.318,3.88824008]
[1771317352453,2.05920137,86.357,86.318,3.88824008]
[1771317352863,8.57671094,86.388,86.303,3.88824008]
[1771317352864,4.78970879,86.35,86.303,3.88824008]
[1771317353166,2.73050742,86.34,86.303,3.88824008]
[1771317353359,2.73050742,86.35,86.303,3.88824008]
[1771317354365,2.73050742,86.35,86.305,3.88824008]
[1771317359164,2.73050742,86.35,86.309,3.88824008]
[1771317359668,2.73050742,86.36,86.319,3.88824008]
[1771317361372,2.08108419,86.349,86.306,3.88824008]
[1771317363074,2.73050742,86.34,86.307,10.4336]
[1771317366975,2.73050742,86.34,86.263,21.60275455]
[1771317366976,2.06988158,86.339,86.251,34.78]
[1771317367272,10.14857119,86.338,86.248,8.13493499]
[1771317367480,2.73050742,86.32,86.261,8.13493499]
[1771317367779,10.14857119,86.344,86.271,8.13493499]
[1771317367980,2.73050742,86.34,86.271,8.13493499]
[1771317368179,10.4298,86.339,86.271,8.13493499]
[1771317368377,2.73050742,86.33,86.271,8.13493499]
[1771317368779,2.73050742,86.33,86.215,34.78]
[1771317368780,2.73050742,86.3,86.227,8.13493499]
[1771317368976,2.73050742,86.3,86.226,10.4434]
[1771317368977,72.94,86.324,86.24,2.73050742]
[1771317369182,2.73050742,86.31,86.251,8.13234762]
[1771317369982,2.73050742,86.32,86.251,8.13234762]
[1771317370882,2.73050742,86.31,86.251,8.13234762]
[1771317371683,2.73050742,86.32,86.261,8.13830806]
[1771317373784,2.73050742,86.32,86.264,8.13501223]
[1771317374380,11.08960573,86.319,86.252,8.13501223]
[1771317374584,72.96,86.338,86.252,8.13501223]
[1771317374585,2.73050742,86.3,86.252,8.13501223]
[1771317374982,11.08960573,86.299,86.21,8.13501223]
[1771317375188,84.04960573,86.298,86.21,8.13501223]
[1771317375386,2.73050742,86.25,86.21,8.13501223]
[1771317375586,72.96,86.297,86.21,8.13501223]
[1771317375886,2.73050742,86.25,86.21,8.13501223]
[1771317376088,72.96,86.297,86.196,8.13205722]
[1771317376089,2.73050742,86.24,86.196,8.13205722]